Workbook

Sheet (Orca-8)
B1: Orca-8 | L1: Tarih: 09.05.2024
C3: Tip Kat Planı | H3: Penthouse Kat Planı
B5: 1. Kat | I5: Köşe | J5: Deniz M. | K5: Dağ M. | L5: Havuz/Peysaj M. | M5: Kuzey | N5: Güney | O5: Doğu | P5: Batı
B7: No: | C7: MODEL | D7: Brüt Alan | E7: Balkon | F7: Fiyat | G7: Durum | H7: Not
B8: 1 | C8: 2+1 | D8: 125 | E8: 40 | F8: 188000 | G8: RES.18.09.H.E | K8: x | L8: x | M8: x | P8: x
B9: 2 | C9: 1+1 | D9: 86 | F9: 149000 | G9: SOLD | K9: x | M9: x | O9: x
B10: 3 | C10: 1+1 | D10: 86 | E10: 16 | F10: 149000 | G10: SOLD | K10: x | M10: x | O10: x
B11: 4 | C11: 2+1 | D11: 125 | E11: 40 | F11: 188000 | G11: RES.25.10.L.G | K11: x | L11: x | N11: x | O11: x
I12: Köşe | J12: Deniz M. | K12: Dağ M. | L12: Havuz/Peysaj M. | M12: Kuzey | N12: Güney | O12: Doğu | P12: Batı
B14: No: | C14: MODEL | D14: Brüt Alan | E14: Balkon | F14: Fiyat | G14: Durum | H14: Not
B15: 5 | C15: 2+1 | D15: 125 | E15: 40 | F15: =F8+2500 -> 190500 | K15: x | L15: x | M15: x | P15: x
B16: 6 | C16: 1+1 | D16: 86 | E16: 16 | F16: 151500 | G16: RES.21.10.H.E | K16: x | M16: x | O16: x
B17: 7 | C17: 1+1 | D17: 86 | E17: 16 | F17: 151500 | G17: res.29.07.R.E. | K17: x | M17: x | O17: x
B18: 8 | C18: 2+1 | D18: 125 | E18: 40 | F18: 190500 | G18: DEPOSİT | K18: x | L18: x | N18: x | O18: x
B19: 3. Kat | I19: Köşe | J19: Deniz M. | K19: Dağ M. | L19: Havuz/Peysaj M. | M19: Kuzey | N19: Güney | O19: Doğu | P19: Batı
B21: No: | C21: MODEL | D21: Brüt Alan | E21: Balkon | F21: Fiyat | G21: Durum | H21: Not
B22: 9 | C22: 2+1 | D22: 125 | E22: 40 | F22: =F15+2500 -> 193000 | K22: x | L22: x | M22: x | P22: x
B23: 10 | C23: 1+1 | D23: 86 | E23: 16 | F23: 154000 | G23: DEPOSİT | K23: x | M23: x | O23: x
B24: 11 | C24: 1+1 | D24: 86 | E24: 16 | F24: 154000 | G24: DEPOSİT | K24: x | M24: x | O24: x
B25: 12 | C25: 2+1 | D25: 125 | E25: 40 | F25: 193000 | K25: x | L25: x | N25: x | O25: x
B26: 4. Kat | I26: Köşe | J26: Deniz M. | K26: Dağ M. | L26: Havuz/Peysaj M. | M26: Kuzey | N26: Güney | O26: Doğu | P26: Batı
B28: No: | C28: MODEL | D28: Brüt Alan | E28: Balkon | F28: Fiyat | G28: Durum | H28: Not
B29: 13 | C29: 2+1 | D29: 125 | E29: 40 | F29: =F22+2500 -> 195500 | K29: x | L29: x | M29: x | P29: x
B30: 14 | C30: 1+1 | D30: 86 | E30: 16 | F30: 156500 | G30: RES.08.10.H.E | K30: x | M30: x | O30: x
B31: 15 | C31: 1+1 | D31: 86 | E31: 16 | F31: 156500 | G31: RES.08.10.H.E | K31: x | M31: x | O31: x
B32: 16 | C32: 2+1 | D32: 125 | E32: 40 | F32: 195500 | G32: SOLD | K32: x | L32: x | N32: x | O32: x
B33: 5. Kat | I33: Köşe | J33: Deniz M. | K33: Dağ M. | L33: Havuz/Peysaj M. | M33: Kuzey | N33: Güney | O33: Doğu | P33: Batı
B35: No: | C35: MODEL | D35: Brüt Alan | E35: Balkon | F35: Fiyat | G35: Durum | H35: Not
B36: 17 | C36: 2+1 | D36: 125 | E36: 40 | F36: =F29+2500 -> 198000 | G36: DEPOSİT | J36: x | K36: x | L36: x | M36: x | P36: x
B37: 18 | C37: 1+1 | D37: 86 | E37: 16 | F37: 159000 | G37: RES.27.09.T.B | J37: x | K37: x | M37: x | O37: x
B38: 19 | C38: 1+1 | D38: 86 | E38: 16 | F38: 159000 | G38: res.02.09.R.EZ | J38: x | K38: x | M38: x | O38: x
B39: 20 | C39: 2+1 | D39: 125 | E39: 40 | F39: 198000 | G39: deposit | J39: x | K39: x | L39: x | N39: x | O39: x
B40: 6. Kat | I40: Köşe | J40: Deniz M. | K40: Dağ M. | L40: Havuz/Peysaj M. | M40: Kuzey | N40: Güney | O40: Doğu | P40: Batı
B42: No: | C42: MODEL | D42: Brüt Alan | E42: Balkon | F42: Fiyat | G42: Durum | H42: Not
B43: 21 | C43: 2+1 | D43: 125 | E43: 40 | F43: =F36+2500 -> 200500 | G43: DEPOSİT | J43: x | K43: x | L43: x | M43: x | P43: x
B44: 22 | C44: 1+1 | D44: 86 | E44: 16 | F44: 161500 | G44: res.05.06.T.T | J44: x | K44: x | M44: x | O44: x
B45: 23 | C45: 1+1 | D45: 86 | E45: 16 | F45: 161500 | G45: deposit | J45: x | K45: x | M45: x | O45: x
B46: 24 | C46: 2+1 | D46: 125 | E46: 40 | F46: 200500 | G46: DEPOSİT | J46: x | K46: x | L46: x | N46: x | O46: x
B47: 7. Kat | I47: Köşe | J47: Deniz M. | K47: Dağ M. | L47: Havuz/Peysaj M. | M47: Kuzey | N47: Güney | O47: Doğu | P47: Batı
B49: No: | C49: MODEL | D49: Brüt Alan | E49: Balkon | F49: Fiyat | G49: Durum | H49: Not
B50: 25 | C50: 2+1 | D50: 125 | E50: 40 | F50: =F43+2500 -> 203000 | G50: RES.27.09.A.L | J50: x | K50: x | L50: x | M50: x | P50: x
B51: 56 | C51: 1+1 | D51: 86 | E51: 16 | F51: 164000 | G51: res. 27.07.R.E. | J51: x | K51: x | M51: x | O51: x
B52: 27 | C52: 1+1 | D52: 86 | E52: 16 | F52: 164000 | G52: res. 27.07.R.E. | J52: x | K52: x | M52: x | O52: x
B53: 28 | C53: 2+1 | D53: 125 | E53: 40 | F53: 203000 | G53: SOLD | J53: x | K53: x | L53: x | N53: x | O53: x
B54: 8. Kat | I54: Köşe | J54: Deniz M. | K54: Dağ M. | L54: Havuz/Peysaj M. | M54: Kuzey | N54: Güney | O54: Doğu | P54: Batı
B56: No: | C56: MODEL | D56: Brüt Alan | E56: Balkon | F56: Fiyat | G56: Durum | H56: Not
B57: 29 | C57: 2+1 | D57: 125 | E57: 40 | F57: =F50+2500 -> 205500 | G57: RES.27.09.A.L | J57: x | K57: x | L57: x | M57: x | P57: x
B58: 30 | C58: 1+1 | D58: 86 | E58: 16 | F58: 166500 | G58: SOLD | J58: x | K58: x | M58: x | O58: x
B59: 31 | C59: 1+1 | D59: 86 | E59: 16 | F59: 166500 | G59: DEPOSIT | J59: x | K59: x | M59: x | O59: x
B60: 32 | C60: 2+1 | D60: 125 | E60: 40 | F60: 205500 | G60: Deposit | J60: x | K60: x | L60: x | N60: x | O60: x
B61: 9. Kat | I61: Köşe | J61: Deniz M. | K61: Dağ M. | L61: Havuz/Peysaj M. | M61: Kuzey | N61: Güney | O61: Doğu | P61: Batı
B63: No: | C63: MODEL | D63: Brüt Alan | E63: Balkon | F63: Fiyat | G63: Durum | H63: Not
B64: 33 | C64: 2+1 | D64: 125 | E64: 40 | F64: =F57+2500 -> 208000 | G64: res.24.08. H.P. | J64: x | K64: x | L64: x | M64: x | P64: x
B65: 34 | C65: 1+1 | D65: 86 | E65: 16 | F65: 169000 | G65: DEPOSİT | J65: x | K65: x | M65: x | O65: x
B66: 35 | C66: 1+1 | D66: 86 | E66: 16 | F66: 169000 | J66: x | K66: x | M66: x | O66: x
B67: 36 | C67: 2+1 | D67: 125 | E67: 40 | F67: 208000 | G67: DEPOSİT | J67: x | K67: x | L67: x | N67: x | O67: x
B68: 10. Kat | I68: Köşe | J68: Deniz M. | K68: Dağ M. | L68: Havuz/Peysaj M. | M68: Kuzey | N68: Güney | O68: Doğu | P68: Batı
B70: No: | C70: MODEL | D70: Brüt Alan | E70: Balkon | F70: Fiyat | G70: Durum | H70: Not
B71: 37 | C71: 2+1 | D71: 125 | E71: 40 | F71: =F64+2500 -> 210500 | G71: res.02.08. A.T. | J71: x | K71: x | L71: x | M71: x | P71: x
B72: 38 | C72: 1+1 | D72: 86 | E72: 16 | F72: 171500 | G72: res25.09.b.f | J72: x | K72: x | M72: x | O72: x
B73: 39 | C73: 1+1 | D73: 86 | E73: 16 | F73: 171500 | G73: RES.29.10.O.E | J73: x | K73: x | M73: x | O73: x
B74: 40 | C74: 2+1 | D74: 125 | E74: 40 | F74: 210500 | G74: deposit | J74: x | K74: x | L74: x | N74: x | O74: x
B75: 11. Kat | I75: Köşe | J75: Deniz M. | K75: Dağ M. | L75: Havuz/Peysaj M. | M75: Kuzey | N75: Güney | O75: Doğu | P75: Batı
B77: No: | C77: MODEL | D77: Brüt Alan | E77: Balkon | F77: Fiyat | G77: Durum | H77: Not
B78: 41 | C78: 1+1 Pent | D78: 173 | E78: 104 (acık) | J78: x | K78: x | L78: x | M78: x | O78: x | P78: x
B79: 42 | C79: 1+1 | D79: 89 | E79: 19 | J79: x | K79: x | M79: x | O79: x
B80: 43 | C80: 1+1 Pent | D80: 173 | E80: 104 (acık) | J80: x | K80: x | L80: x | N80: x | O80: x | P80: x

Sheet (Orca-9)
B1: Orca-9 | L1: Tarih: 09.05.2024
C3: Tip Kat Planı | H3: Penthouse Kat Planı
B5: 1. Kat | I5: Köşe | J5: Deniz M. | K5: Dağ M. | L5: Havuz/Peysaj M. | M5: Kuzey | N5: Güney | O5: Doğu | P5: Batı
B7: No: | C7: MODEL | D7: Brüt Alan | E7: Balkon | F7: Fiyat | G7: Durum | H7: Not
B8: 1 | C8: 2+1 | D8: 125 | E8: 40 | F8: 188000 | G8: RES.23.09.T.B | K8: x | L8: x | M8: x | P8: x
B9: 2 | C9: 1+1 | D9: 86 | E9: 16 | F9: 149000 | G9: RES.23.09.T.B | K9: x | M9: x | O9: x
B10: 3 | C10: 1+1 | D10: 86 | E10: 16 | F10: 149000 | G10: RES.23.09.T.B | K10: x | M10: x | O10: x
B11: 4 | C11: 2+1 | D11: 125 | E11: 40 | F11: 188000 | G11: RES.23.09.T.B | K11: x | N11: x | O11: x
B12: 2. Kat | I12: Köşe | J12: Deniz M. | K12: Dağ M. | L12: Havuz/Peysaj M. | M12: Kuzey | N12: Güney | O12: Doğu | P12: Batı
B14: No: | C14: MODEL | D14: Brüt Alan | E14: Balkon | F14: Fiyat | G14: Durum | H14: Not
B15: 5 | C15: 2+1 | D15: 125 | E15: 40 | F15: =F8+2500 -> 190500 | K15: x | L15: x | M15: x | P15: x
B16: 6 | C16: 1+1 | D16: 86 | E16: 16 | F16: 151500 | K16: x | M16: x | O16: x
B17: 7 | C17: 1+1 | D17: 86 | E17: 16 | F17: 151500 | K17: x | M17: x | O17: x
B18: 8 | C18: 2+1 | D18: 125 | E18: 40 | F18: 190500 | H18: res.26.08.R.H. | K18: x | N18: x | O18: x
B19: 3. Kat | I19: Köşe | J19: Deniz M. | K19: Dağ M. | L19: Havuz/Peysaj M. | M19: Kuzey | N19: Güney | O19: Doğu | P19: Batı
B21: No: | C21: MODEL | D21: Brüt Alan | E21: Balkon | F21: Fiyat | G21: Durum | H21: Not
B22: 9 | C22: 2+1 | D22: 125 | E22: 40 | F22: =F15+2500 -> 193000 | K22: x | L22: x | M22: x | P22: x
B23: 10 | C23: 1+1 | D23: 86 | E23: 16 | F23: 154000 | G23: RES.09.09.R.S | K23: x | M23: x | O23: x
B24: 11 | C24: 1+1 | D24: 86 | E24: 16 | F24: 154000 | K24: x | M24: x | O24: x
B25: 12 | C25: 2+1 | D25: 125 | E25: 40 | F25: 193000 | G25: RES.19.07.Ö.Ö | K25: x | N25: x | O25: x
B26: 4. Kat | I26: Köşe | J26: Deniz M. | K26: Dağ M. | L26: Havuz/Peysaj M. | M26: Kuzey | N26: Güney | O26: Doğu | P26: Batı
B28: No: | C28: MODEL | D28: Brüt Alan | E28: Balkon | F28: Fiyat | G28: Durum | H28: Not
B29: 13 | C29: 2+1 | D29: 125 | E29: 40 | F29: =F22+2500 -> 195500 | K29: x | L29: x | M29: x | P29: x
B30: 14 | C30: 1+1 | D30: 86 | E30: 16 | F30: 156500 | K30: x | M30: x | O30: x
B31: 15 | C31: 1+1 | D31: 86 | E31: 16 | F31: 156500 | K31: x | M31: x | O31: x
B32: 16 | C32: 2+1 | D32: 125 | E32: 40 | F32: 195500 | K32: x | N32: x | O32: x
B33: 5. Kat | I33: Köşe | J33: Deniz M. | K33: Dağ M. | L33: Havuz/Peysaj M. | M33: Kuzey | N33: Güney | O33: Doğu | P33: Batı
B35: No: | C35: MODEL | D35: Brüt Alan | E35: Balkon | F35: Fiyat | G35: Durum | H35: Not
B36: 17 | C36: 2+1 | D36: 125 | E36: 40 | F36: =F29+2500 -> 198000 | G36: RES.24.10.L.G | J36: x | K36: x | L36: x | M36: x | P36: x
B37: 18 | C37: 1+1 | D37: 86 | E37: 16 | F37: 159000 | G37: RES.25.10.H.P | H37: RES.06.11.B.F | J37: x | K37: x | M37: x | O37: x
B38: 19 | C38: 1+1 | D38: 86 | E38: 16 | F38: 159000 | G38: RES.25.10.H.P | J38: x | K38: x | M38: x | O38: x
B39: 20 | C39: 2+1 | D39: 125 | E39: 40 | F39: 198000 | G39: DEPOSİT | J39: x | K39: x | N39: x | O39: x
B40: 6. Kat | I40: Köşe | J40: Deniz M. | K40: Dağ M. | L40: Havuz/Peysaj M. | M40: Kuzey | N40: Güney | O40: Doğu | P40: Batı
B42: No: | C42: MODEL | D42: Brüt Alan | E42: Balkon | F42: Fiyat | G42: Durum | H42: Not
B43: 21 | C43: 2+1 | D43: 125 | E43: 40 | F43: =F36+2500 -> 200500 | J43: x | K43: x | L43: x | M43: x | P43: x
B44: 22 | C44: 1+1 | D44: 86 | E44: 16 | F44: 161500 | G44: res.13.06.a.t | J44: x | K44: x | M44: x | O44: x
B45: 23 | C45: 1+1 | D45: 86 | E45: 16 | F45: 161500 | J45: x | K45: x | M45: x | O45: x
B46: 24 | C46: 2+1 | D46: 125 | E46: 40 | F46: 200500 | G46: RES.24.08.H.P, | J46: x | K46: x | N46: x | O46: x
B47: 7. Kat | I47: Köşe | J47: Deniz M. | K47: Dağ M. | L47: Havuz/Peysaj M. | M47: Kuzey | N47: Güney | O47: Doğu | P47: Batı
B49: No: | C49: MODEL | D49: Brüt Alan | E49: Balkon | F49: Fiyat | G49: Durum | H49: Not
B50: 25 | C50: 2+1 | D50: 125 | E50: 40 | F50: =F43+2500 -> 203000 | G50: RES.28.10.İ.G | J50: x | K50: x | L50: x | M50: x | P50: x
B51: 56 | C51: 1+1 | D51: 86 | E51: 16 | F51: 164000 | J51: x | K51: x | M51: x | O51: x
B52: 27 | C52: 1+1 | D52: 86 | E52: 16 | F52: 164000 | J52: x | K52: x | M52: x | O52: x
B53: 28 | C53: 2+1 | D53: 125 | E53: 40 | F53: 203000 | G53: RES.23.09.L.G | J53: x | K53: x | N53: x | O53: x
B54: 8. Kat | I54: Köşe | J54: Deniz M. | K54: Dağ M. | L54: Havuz/Peysaj M. | M54: Kuzey | N54: Güney | O54: Doğu | P54: Batı
B56: No: | C56: MODEL | D56: Brüt Alan | E56: Balkon | F56: Fiyat | G56: Durum | H56: Not
B57: 29 | C57: 2+1 | D57: 125 | E57: 40 | F57: =F50+2500 -> 205500 | J57: x | K57: x | L57: x | M57: x | P57: x
B58: 30 | C58: 1+1 | D58: 86 | E58: 16 | F58: 166500 | J58: x | K58: x | M58: x | O58: x
B59: 31 | C59: 1+1 | D59: 86 | E59: 16 | F59: 166500 | J59: x | K59: x | M59: x | O59: x
B60: 32 | C60: 2+1 | D60: 125 | E60: 40 | F60: 205500 | G60: deposit | J60: x | K60: x | N60: x | O60: x
B61: 9. Kat | I61: Köşe | J61: Deniz M. | K61: Dağ M. | L61: Havuz/Peysaj M. | M61: Kuzey | N61: Güney | O61: Doğu | P61: Batı
B63: No: | C63: MODEL | D63: Brüt Alan | E63: Balkon | F63: Fiyat | G63: Durum | H63: Not
B64: 33 | C64: 2+1 | D64: 125 | E64: 40 | F64: =F57+2500 -> 208000 | J64: x | K64: x | L64: x | M64: x | P64: x
B65: 34 | C65: 1+1 | D65: 86 | E65: 16 | F65: 169000 | J65: x | K65: x | M65: x | O65: x
B66: 35 | C66: 1+1 | D66: 86 | E66: 16 | F66: 169000 | J66: x | K66: x | M66: x | O66: x
B67: 36 | C67: 2+1 | D67: 125 | E67: 40 | F67: 208000 | G67: RES.9.8.R.EZ | J67: x | K67: x | N67: x | O67: x
B68: 10. Kat | I68: Köşe | J68: Deniz M. | K68: Dağ M. | L68: Havuz/Peysaj M. | M68: Kuzey | N68: Güney | O68: Doğu | P68: Batı
B70: No: | C70: MODEL | D70: Brüt Alan | E70: Balkon | F70: Fiyat | G70: Durum | H70: Not
B71: 37 | C71: 2+1 | D71: 125 | E71: 40 | F71: =F64+2500 -> 210500 | G71: SOLD | J71: x | K71: x | L71: x | M71: x | P71: x
B72: 38 | C72: 1+1 | D72: 86 | E72: 16 | F72: 171500 | J72: x | K72: x | M72: x | O72: x
B73: 39 | C73: 1+1 | D73: 86 | E73: 16 | F73: 171500 | G73: RES.04.10.B.F | J73: x | K73: x | M73: x | O73: x
B74: 40 | C74: 2+1 | D74: 125 | E74: 40 | F74: 210500 | G74: RES.04.10.B.F | J74: x | K74: x | N74: x | O74: x
B75: 11. Kat | I75: Köşe | J75: Deniz M. | K75: Dağ M. | L75: Havuz/Peysaj M. | M75: Kuzey | N75: Güney | O75: Doğu | P75: Batı
B77: No: | C77: MODEL | D77: Brüt Alan | E77: Balkon | F77: Fiyat | G77: Durum | H77: Not
B78: 41 | C78: 1+1 Pent | D78: 173 | E78: 104 (acık) | J78: x | K78: x | L78: x | M78: x | O78: x | P78: x
B79: 42 | C79: 1+1 | D79: 89 | E79: 19 | J79: x | K79: x | M79: x | O79: x
B80: 43 | C80: 1+1 Pent | D80: 173 | E80: 104 (acık) | J80: x | K80: x | N80: x | O80: x | P80: x

Sheet (Orca-10)
B1: Orca-10 | L1: Tarih: 09.05.2024
C3: Tip Kat Planı | H3: Penthouse Kat Planı
B5: 1. Kat | I5: Köşe | J5: Deniz M. | K5: Dağ M. | L5: Havuz/Peysaj M. | M5: Kuzey | N5: Güney | O5: Doğu | P5: Batı
B7: No: | C7: MODEL | D7: Brüt Alan | E7: Balkon | F7: Fiyat | G7: Durum | H7: Not
B8: 1 | C8: 2+1 | D8: 125 | E8: 40 | F8: 188000 | I8: x | K8: x | M8: x | P8: x
B9: 2 | C9: 1+1 | D9: 86 | E9: 16 | F9: 149000 | G9: RES.30.09.L.G | K9: x | M9: x | O9: x
B10: 3 | C10: 1+1 | D10: 86 | E10: 16 | F10: 149000 | K10: x | M10: x | O10: x
B11: 4 | C11: 2+1 | D11: 125 | E11: 40 | F11: 188000 | K11: x | N11: x | O11: x
B12: 2. Kat | I12: Köşe | J12: Deniz M. | K12: Dağ M. | L12: Havuz/Peysaj M. | M12: Kuzey | N12: Güney | O12: Doğu | P12: Batı
B14: No: | C14: MODEL | D14: Brüt Alan | E14: Balkon | F14: Fiyat | G14: Durum | H14: Not
B15: 5 | C15: 2+1 | D15: 125 | E15: 40 | F15: =F8+2500 -> 190500 | I15: x | K15: x | M15: x | P15: x
B16: 6 | C16: 1+1 | D16: 86 | E16: 16 | F16: 151500 | K16: x | M16: x | O16: x
B17: 7 | C17: 1+1 | D17: 86 | E17: 16 | F17: 151500 | K17: x | M17: x | O17: x
B18: 8 | C18: 2+1 | D18: 125 | E18: 40 | F18: 190500 | K18: x | N18: x | O18: x
B19: 3. Kat | I19: Köşe | J19: Deniz M. | K19: Dağ M. | L19: Havuz/Peysaj M. | M19: Kuzey | N19: Güney | O19: Doğu | P19: Batı
B21: No: | C21: MODEL | D21: Brüt Alan | E21: Balkon | F21: Fiyat | G21: Durum | H21: Not
B22: 9 | C22: 2+1 | D22: 125 | E22: 40 | F22: =F15+2500 -> 193000 | G22: RES.09.09.R.S | I22: x | K22: x | M22: x | P22: x
B23: 10 | C23: 1+1 | D23: 86 | E23: 16 | F23: 154000 | G23: RES.09.09R.S | K23: x | M23: x | O23: x
B24: 11 | C24: 1+1 | D24: 86 | E24: 16 | F24: 154000 | K24: x | M24: x | O24: x
B25: 12 | C25: 2+1 | D25: 125 | E25: 40 | F25: 193000 | G25: RES.18.08.S.B | K25: x | N25: x | O25: x
B26: 4. Kat | I26: Köşe | J26: Deniz M. | K26: Dağ M. | L26: Havuz/Peysaj M. | M26: Kuzey | N26: Güney | O26: Doğu | P26: Batı
B28: No: | C28: MODEL | D28: Brüt Alan | E28: Balkon | F28: Fiyat | G28: Durum | H28: Not
B29: 13 | C29: 2+1 | D29: 125 | E29: 40 | F29: =F22+2500 -> 195500 | I29: x | K29: x | M29: x | P29: x
B30: 14 | C30: 1+1 | D30: 86 | E30: 16 | F30: 156500 | K30: x | M30: x | O30: x
B31: 15 | C31: 1+1 | D31: 86 | E31: 16 | F31: 156500 | K31: x | M31: x | O31: x
B32: 16 | C32: 2+1 | D32: 125 | E32: 40 | F32: 195500 | K32: x | N32: x | O32: x
B33: 5. Kat | I33: Köşe | J33: Deniz M. | K33: Dağ M. | L33: Havuz/Peysaj M. | M33: Kuzey | N33: Güney | O33: Doğu | P33: Batı
B35: No: | C35: MODEL | D35: Brüt Alan | E35: Balkon | F35: Fiyat | G35: Durum | H35: Not
B36: 17 | C36: 2+1 | D36: 125 | E36: 40 | F36: =F29+2500 -> 198000 | I36: x | J36: x | K36: x | M36: x | P36: x
B37: 18 | C37: 1+1 | D37: 86 | E37: 16 | F37: 159000 | J37: x | K37: x | M37: x | O37: x
B38: 19 | C38: 1+1 | D38: 86 | E38: 16 | F38: 159000 | J38: x | K38: x | M38: x | O38: x
B39: 20 | C39: 2+1 | D39: 125 | E39: 40 | F39: 198000 | J39: x | K39: x | N39: x | O39: x
B40: 6. Kat | I40: Köşe | J40: Deniz M. | K40: Dağ M. | L40: Havuz/Peysaj M. | M40: Kuzey | N40: Güney | O40: Doğu | P40: Batı
B42: No: | C42: MODEL | D42: Brüt Alan | E42: Balkon | F42: Fiyat | G42: Durum | H42: Not
B43: 21 | C43: 2+1 | D43: 125 | E43: 40 | F43: =F36+2500 -> 200500 | I43: x | J43: x | K43: x | M43: x | P43: x
B44: 22 | C44: 1+1 | D44: 86 | E44: 16 | F44: 161500 | J44: x | K44: x | M44: x | O44: x
B45: 23 | C45: 1+1 | D45: 86 | E45: 16 | F45: 161500 | J45: x | K45: x | M45: x | O45: x
B46: 24 | C46: 2+1 | D46: 125 | E46: 40 | F46: 200500 | J46: x | K46: x | N46: x | O46: x
B47: 7. Kat | I47: Köşe | J47: Deniz M. | K47: Dağ M. | L47: Havuz/Peysaj M. | M47: Kuzey | N47: Güney | O47: Doğu | P47: Batı
B49: No: | C49: MODEL | D49: Brüt Alan | E49: Balkon | F49: Fiyat | G49: Durum | H49: Not
B50: 25 | C50: 2+1 | D50: 125 | E50: 40 | F50: =F43+2500 -> 203000 | I50: x | J50: x | K50: x | M50: x | P50: x
B51: 56 | C51: 1+1 | D51: 86 | E51: 16 | F51: 164000 | J51: x | K51: x | M51: x | O51: x
B52: 27 | C52: 1+1 | D52: 86 | E52: 16 | F52: 164000 | J52: x | K52: x | M52: x | O52: x
B53: 28 | C53: 2+1 | D53: 125 | E53: 40 | F53: 203000 | J53: x | K53: x | N53: x | O53: x
B54: 8. Kat | I54: Köşe | J54: Deniz M. | K54: Dağ M. | L54: Havuz/Peysaj M. | M54: Kuzey | N54: Güney | O54: Doğu | P54: Batı
B56: No: | C56: MODEL | D56: Brüt Alan | E56: Balkon | F56: Fiyat | G56: Durum | H56: Not
B57: 29 | C57: 2+1 | D57: 125 | E57: 40 | F57: =F50+2500 -> 205500 | I57: x | J57: x | K57: x | M57: x | P57: x
B58: 30 | C58: 1+1 | D58: 86 | E58: 16 | F58: 166500 | J58: x | K58: x | M58: x | O58: x
B59: 31 | C59: 1+1 | D59: 86 | E59: 16 | F59: 166500 | J59: x | K59: x | M59: x | O59: x
B60: 32 | C60: 2+1 | D60: 125 | E60: 40 | F60: 205500 | J60: x | K60: x | N60: x | O60: x
B61: 9. Kat | I61: Köşe | J61: Deniz M. | K61: Dağ M. | L61: Havuz/Peysaj M. | M61: Kuzey | N61: Güney | O61: Doğu | P61: Batı
B63: No: | C63: MODEL | D63: Brüt Alan | E63: Balkon | F63: Fiyat | G63: Durum | H63: Not
B64: 33 | C64: 2+1 | D64: 125 | E64: 40 | F64: =F57+2500 -> 208000 | I64: x | J64: x | K64: x | M64: x | P64: x
B65: 34 | C65: 1+1 | D65: 86 | E65: 16 | F65: 169000 | J65: x | K65: x | M65: x | O65: x
B66: 35 | C66: 1+1 | D66: 86 | E66: 16 | F66: 169000 | J66: x | K66: x | M66: x | O66: x
B67: 36 | C67: 2+1 | D67: 125 | E67: 40 | F67: 208000 | J67: x | K67: x | N67: x | O67: x
B68: 10. Kat | I68: Köşe | J68: Deniz M. | K68: Dağ M. | L68: Havuz/Peysaj M. | M68: Kuzey | N68: Güney | O68: Doğu | P68: Batı
B70: No: | C70: MODEL | D70: Brüt Alan | E70: Balkon | F70: Fiyat | G70: Durum | H70: Not
B71: 37 | C71: 2+1 | D71: 125 | E71: 40 | F71: =F64+2500 -> 210500 | I71: x | J71: x | K71: x | M71: x | P71: x
B72: 38 | C72: 1+1 | D72: 86 | E72: 16 | F72: 171500 | J72: x | K72: x | M72: x | O72: x
B73: 39 | C73: 1+1 | D73: 86 | E73: 16 | F73: 171500 | J73: x | K73: x | M73: x | O73: x
B74: 40 | C74: 2+1 | D74: 125 | E74: 40 | F74: 210500 | J74: x | K74: x | N74: x | O74: x
B75: 11. Kat | I75: Köşe | J75: Deniz M. | K75: Dağ M. | L75: Havuz/Peysaj M. | M75: Kuzey | N75: Güney | O75: Doğu | P75: Batı
B77: No: | C77: MODEL | D77: Brüt Alan | E77: Balkon | F77: Fiyat | G77: Durum | H77: Not
B78: 41 | C78: 1+1 Pent | D78: 173 | E78: 104 (acık) | I78: x | J78: x | K78: x | M78: x | O78: x | P78: x
B79: 42 | C79: 1+1 | D79: 89 | E79: 19 | J79: x | K79: x | M79: x | O79: x
B80: 43 | C80: 1+1 Pent | D80: 173 | E80: 104 (acık) | J80: x | K80: x | N80: x | O80: x | P80: x

Sheet (Afalina-3)
A1: p | B1: Afalina-3 | K1: Tarih: 09.05.2024
C3: Tip Kat Planı | F3: Penthouse Kat Planı
B5: Z. Kat | H5: Köşe | I5: Deniz M. | J5: Dağ M. | K5: Havuz/Peysaj M. | L5: Kuzey | M5: Güney | N5: Doğu | O5: Batı
B7: No: | C7: MODEL | D7: Brüt Alan | E7: Balkon | F7: Fiyat | G7: Not
B8: 1 | C8: Studio (C) | D8: 36 | E8: 5 | F8: 84000 | G8: SOLD | J8: x | L8: x | O8: x
B9: 2 | C9: 1+1 | D9: 103 | E9: 40 | F9: 158000 | J9: x | M9: x | N9: x
B10: 3 | C10: Studio (B) | D10: 45 | E10: 8 | F10: 94500 | G10: DEPOSİT | M10: x | N10: x
B11: 4 | C11: Studio (A) | D11: 45 | E11: 8 | F11: 94500 | G11: SOLD | M11: x | N11: x
B12: 5 | C12: Studio (A) | D12: 45 | E12: 8 | F12: 92000 | G12: DEPOSİT | M12: x | N12: x
B13: 6 | C13: Studio (B) | D13: 45 | E13: 8 | F13: 90000 | G13: DEPOSİT | M13: x | N13: x
B14: 7 | C14: 1+1 | D14: 103 | E14: 40 | F14: 158000 | H14: x | J14: x | M14: x | O14: x
B15: 8 | C15: Studio (C) | D15: 36 | E15: 5 | F15: 86000 | G15: DEPOSİT | J15: x | L15: x | O15: x
B16: 1. Kat | H16: Köşe | I16: Deniz M. | J16: Dağ M. | K16: Havuz/Peysaj M. | L16: Kuzey | M16: Güney | N16: Doğu | O16: Batı
B18: No: | C18: MODEL | D18: Brüt Alan | E18: Balkon | F18: Fiyat | G18: Not
B19: 9 | C19: Studio (C) | D19: 36 | E19: 5 | F19: =F8+2500 -> 86500 | G19: SOLD | J19: x | L19: x | O19: x
B20: 10 | C20: 1+1 | D20: 103 | E20: 40 | F20: 160500 | G20: DEPOSİT | J20: x | M20: x | N20: x
B21: 11 | C21: Studio (B) | D21: 45 | E21: 8 | F21: 97000 | G21: Sold | M21: x | N21: x
B22: 12 | C22: Studio (A) | D22: 45 | E22: 8 | F22: 97000 | G22: SOLD | M22: x | N22: x
B23: 13 | C23: Studio (A) | D23: 45 | E23: 8 | F23: 94500 | G23: SOLD | M23: x | N23: x
B24: 14 | C24: Studio (B) | D24: 45 | E24: 8 | F24: 92500 | G24: Sold | M24: x | N24: x
B25: 15 | C25: 1+1 | D25: 103 | E25: 40 | F25: 160500 | H25: x | J25: x | M25: x | O25: x
B26: 16 | C26: Studio (C) | D26: 36 | E26: 5 | F26: 88500 | G26: Sold | J26: x | L26: x | O26: x
B27: 2. Kat | H27: Köşe | I27: Deniz M. | J27: Dağ M. | K27: Havuz/Peysaj M. | L27: Kuzey | M27: Güney | N27: Doğu | O27: Batı
B29: No: | C29: MODEL | D29: Brüt Alan | E29: Balkon | F29: Fiyat | G29: Not
B30: 17 | C30: Studio (C) | D30: 36 | E30: 5 | F30: =F19+2500 -> 89000 | G30: Sold | J30: x | L30: x | O30: x
B31: 18 | C31: 1+1 | D31: 103 | E31: 40 | F31: 163000 | G31: DEPOSİT | J31: x | M31: x | N31: x
B32: 19 | C32: Studio (B) | D32: 45 | E32: 8 | F32: 99500 | G32: DEPOSİT | M32: x | N32: x
B33: 20 | C33: Studio (A) | D33: 45 | E33: 8 | F33: 99500 | G33: SOLD | M33: x | N33: x
B34: 21 | C34: Studio (A) | D34: 45 | E34: 8 | F34: 97000 | G34: SOLD | M34: x | N34: x
B35: 22 | C35: Studio (B) | D35: 45 | E35: 8 | F35: 95000 | G35: SOLD | M35: x | N35: x
B36: 23 | C36: 1+1 | D36: 103 | E36: 40 | F36: 163000 | G36: RES.06.11.O.E | H36: x | J36: x | M36: x | O36: x
B37: 24 | C37: Studio (C) | D37: 36 | E37: 5 | F37: 91000 | G37: SOLD | J37: x | L37: x | O37: x
B38: 3. Kat | H38: Köşe | I38: Deniz M. | J38: Dağ M. | K38: Havuz/Peysaj M. | L38: Kuzey | M38: Güney | N38: Doğu | O38: Batı
B40: No: | C40: MODEL | D40: Brüt Alan | E40: Balkon | F40: Fiyat | G40: Not
B41: 25 | C41: Studio (C) | D41: 36 | E41: 5 | F41: =F30+2500 -> 91500 | G41: SOLD | J41: x | L41: x | O41: x
B42: 26 | C42: 1+1 | D42: 103 | E42: 40 | F42: 165500 | J42: x | M42: x | N42: x
B43: 27 | C43: Studio (B) | D43: 45 | E43: 8 | F43: 102000 | G43: Sold | M43: x | N43: x
B44: 28 | C44: Studio (A) | D44: 45 | E44: 8 | F44: 102000 | G44: Sold | M44: x | N44: x
B45: 29 | C45: Studio (A) | D45: 45 | E45: 8 | F45: 99500 | G45: Sold | M45: x | N45: x
B46: 30 | C46: Studio (B) | D46: 45 | E46: 8 | F46: 97500 | G46: sold | M46: x | N46: x
B47: 31 | C47: 1+1 | D47: 103 | E47: 40 | F47: 165500 | G47: SOLD | H47: x | J47: x | M47: x | O47: x
B48: 32 | C48: Studio (C) | D48: 36 | E48: 5 | F48: 93500 | G48: RES.25.10.B.F | J48: x | L48: x | O48: x
B49: 4. Kat | H49: Köşe | I49: Deniz M. | J49: Dağ M. | K49: Havuz/Peysaj M. | L49: Kuzey | M49: Güney | N49: Doğu | O49: Batı
B51: No: | C51: MODEL | D51: Brüt Alan | E51: Balkon | F51: Fiyat | G51: Not
B52: 33 | C52: Studio (C) | D52: 36 | E52: 5 | F52: =F41+2500 -> 94000 | G52: RES.28.10.A.T | J52: x | L52: x | O52: x
B53: 34 | C53: 1+1 | D53: 103 | E53: 40 | F53: 168000 | J53: x | M53: x | N53: x
B54: 35 | C54: Studio (B) | D54: 45 | E54: 8 | F54: 104500 | G54: SOLD | M54: x | N54: x
B55: 36 | C55: Studio (A) | D55: 45 | E55: 8 | F55: 104500 | G55: SOLD | M55: x | N55: x
B56: 37 | C56: Studio (A) | D56: 45 | E56: 8 | F56: 102000 | G56: SOLD | M56: x | N56: x
B57: 38 | C57: Studio (B) | D57: 45 | E57: 8 | F57: 100000 | G57: SOLD | M57: x | N57: x
B58: 39 | C58: 1+1 | D58: 103 | E58: 40 | F58: 168000 | H58: x | J58: x | M58: x | O58: x
B59: 40 | C59: Studio (C) | D59: 36 | E59: 5 | F59: 96000 | G59: RES.28.10.H.E | J59: x | L59: x | O59: x
B60: 5. Kat | H60: Köşe | I60: Deniz M. | J60: Dağ M. | K60: Havuz/Peysaj M. | L60: Kuzey | M60: Güney | N60: Doğu | O60: Batı
B62: No: | C62: MODEL | D62: Brüt Alan | E62: Balkon | F62: Fiyat | G62: Not
B63: 41 | C63: Studio (C) | D63: 36 | E63: 5 | F63: =F52+2500 -> 96500 | J63: x | L63: x | O63: x
B64: 42 | C64: 1+1 | D64: 103 | E64: 40 | F64: 170500 | J64: x | M64: x | N64: x
B65: 43 | C65: Studio (B) | D65: 45 | E65: 8 | F65: 107000 | G65: DEPOSİT | M65: x | N65: x
B66: 44 | C66: Studio (A) | D66: 45 | E66: 8 | F66: 107000 | G66: Sold | M66: x | N66: x
B67: 45 | C67: Studio (A) | D67: 45 | E67: 8 | F67: 104500 | G67: Sold | M67: x | N67: x
B68: 46 | C68: Studio (B) | D68: 45 | E68: 8 | F68: 102500 | G68: SOLD | M68: x | N68: x
B69: 47 | C69: 1+1 | D69: 103 | E69: 40 | F69: 170500 | H69: x | J69: x | M69: x | O69: x
B70: 48 | C70: Studio (C) | D70: 36 | E70: 5 | F70: 98500 | J70: x | L70: x | O70: x
B71: 6. Kat | H71: Köşe | I71: Deniz M. | J71: Dağ M. | K71: Havuz/Peysaj M. | L71: Kuzey | M71: Güney | N71: Doğu | O71: Batı
B73: No: | C73: MODEL | D73: Brüt Alan | E73: Balkon | F73: Fiyat | G73: Not
B74: 49 | C74: Studio (C) | D74: 36 | E74: 5 | F74: =F63+2500 -> 99000 | J74: x | L74: x | O74: x
B75: 50 | C75: 1+1 | D75: 103 | E75: 40 | F75: 173000 | G75: RES.06.06.A.T. | J75: x | M75: x | N75: x
B76: 51 | C76: Studio (B) | D76: 45 | E76: 8 | F76: 109500 | G76: DEPOSİT | M76: x | N76: x
B77: 52 | C77: Studio (A) | D77: 45 | E77: 8 | F77: 109500 | G77: SOLD | M77: x | N77: x
B78: 53 | C78: Studio (A) | D78: 45 | E78: 8 | F78: 107000 | G78: SOLD | M78: x | N78: x
B79: 54 | C79: Studio (B) | D79: 45 | E79: 8 | F79: 105000 | G79: DEPOSİT | M79: x | N79: x
B80: 55 | C80: 1+1 | D80: 103 | E80: 40 | F80: 173000 | H80: x | J80: x | M80: x | O80: x
B81: 56 | C81: Studio (C) | D81: 36 | E81: 5 | F81: 101000 | J81: x | L81: x | O81: x
B82: 7. Kat | H82: Köşe | I82: Deniz M. | J82: Dağ M. | K82: Havuz/Peysaj M. | L82: Kuzey | M82: Güney | N82: Doğu | O82: Batı
B84: No: | C84: MODEL | D84: Brüt Alan | E84: Balkon | F84: Fiyat | G84: Not
B85: 57 | C85: Studio (C) | D85: 36 | E85: 5 | F85: =F74+2500 -> 101500 | J85: x | L85: x | O85: x
B86: 58 | C86: 1+1 | D86: 103 | E86: 40 | F86: 175500 | J86: x | M86: x | N86: x
B87: 59 | C87: Studio (B) | D87: 45 | E87: 8 | F87: 112000 | G87: DEPOSİT | M87: x | N87: x
B88: 60 | C88: Studio (A) | D88: 45 | E88: 8 | F88: 112000 | G88: SOLD | M88: x | N88: x
B89: 61 | C89: Studio (A) | D89: 45 | E89: 8 | F89: 109500 | G89: SOLD | M89: x | N89: x
B90: 62 | C90: Studio (B) | D90: 45 | E90: 8 | F90: 107500 | G90: SOLD | M90: x | N90: x
B91: 63 | C91: 1+1 | D91: 103 | E91: 40 | F91: 175500 | H91: x | J91: x | M91: x | O91: x
B92: 64 | C92: Studio (C) | D92: 36 | E92: 5 | F92: 103500 | J92: x | L92: x | O92: x
B93: 8. Kat | H93: Köşe | I93: Deniz M. | J93: Dağ M. | K93: Havuz/Peysaj M. | L93: Kuzey | M93: Güney | N93: Doğu | O93: Batı
B95: No: | C95: MODEL | D95: Brüt Alan | E95: Balkon | F95: Fiyat | G95: Not
B96: 65 | C96: Studio (C) | D96: 36 | E96: 5 | F96: =F85+2500 -> 104000 | J96: x | L96: x | O96: x
B97: 66 | C97: 1+1 | D97: 103 | E97: 40 | F97: 178000 | J97: x | M97: x | N97: x
B98: 67 | C98: Studio (B) | D98: 45 | E98: 8 | F98: 114500 | M98: x | N98: x
B99: 68 | C99: Studio (A) | D99: 45 | E99: 8 | F99: 114500 | M99: x | N99: x
B100: 69 | C100: Studio (A) | D100: 45 | E100: 8 | F100: 112000 | M100: x | N100: x
B101: 70 | C101: Studio (B) | D101: 45 | E101: 8 | F101: 110000 | G101: SOLD | M101: x | N101: x
B102: 71 | C102: 1+1 | D102: 103 | E102: 40 | F102: 178000 | H102: x | J102: x | M102: x | O102: x
B103: 72 | C103: Studio (C) | D103: 36 | E103: 5 | F103: 106000 | J103: x | L103: x | O103: x
B104: 9. Kat | H104: Köşe | I104: Deniz M. | J104: Dağ M. | K104: Havuz/Peysaj M. | L104: Kuzey | M104: Güney | N104: Doğu | O104: Batı
B106: No: | C106: MODEL | D106: Brüt Alan | E106: Balkon | F106: Fiyat | G106: Not
B107: 73 | C107: Studio (C) | D107: 36 | E107: 5 | F107: =F96+2500 -> 106500 | J107: x | L107: x | O107: x
B108: 74 | C108: 1+1 | D108: 103 | E108: 40 | F108: 180500 | J108: x | M108: x | N108: x
B109: 75 | C109: Studio (B) | D109: 45 | E109: 8 | F109: 117000 | G109: SOLD | M109: x | N109: x
B110: 76 | C110: Studio (A) | D110: 45 | E110: 8 | F110: 117000 | M110: x | N110: x
B111: 77 | C111: Studio (A) | D111: 45 | E111: 8 | F111: 114500 | G111: SOLD | M111: x | N111: x
B112: 78 | C112: Studio (B) | D112: 45 | E112: 8 | F112: 112500 | G112: DEPOSİT | M112: x | N112: x
B113: 79 | C113: 1+1 | D113: 103 | E113: 40 | F113: 180500 | H113: x | J113: x | M113: x | O113: x
B114: 80 | C114: Studio (C) | D114: 36 | E114: 5 | F114: 108500 | J114: x | L114: x | O114: x
B115: 10. Kat | H115: Köşe | I115: Deniz M. | J115: Dağ M. | K115: Havuz/Peysaj M. | L115: Kuzey | M115: Güney | N115: Doğu | O115: Batı
B117: No: | C117: MODEL | D117: Brüt Alan | E117: Balkon | F117: Fiyat | G117: Not
B118: 81 | C118: Studio (C) | D118: 36 | E118: 5 | F118: =F107+2500 -> 109000 | J118: x | L118: x | O118: x
B119: 82 | C119: 1+1 | D119: 103 | E119: 40 | F119: 183000 | J119: x | M119: x | N119: x
B120: 83 | C120: Studio (B) | D120: 45 | E120: 8 | F120: 119500 | G120: DEPOSİT | M120: x | N120: x
B121: 84 | C121: Studio (A) | D121: 45 | E121: 8 | F121: 119500 | M121: x | N121: x
B122: 85 | C122: Studio (A) | D122: 45 | E122: 8 | F122: 117000 | M122: x | N122: x
B123: 86 | C123: Studio (B) | D123: 45 | E123: 8 | F123: 115000 | M123: x | N123: x
B124: 87 | C124: 1+1 | D124: 103 | E124: 40 | F124: 183000 | H124: x | J124: x | M124: x | O124: x
B125: 88 | C125: Studio (C) | D125: 36 | E125: 5 | F125: 111000 | J125: x | L125: x | O125: x
B126: 11. Kat | H126: Köşe | I126: Deniz M. | J126: Dağ M. | K126: Havuz/Peysaj M. | L126: Kuzey | M126: Güney | N126: Doğu | O126: Batı
B128: No: | C128: MODEL | D128: Brüt Alan | E128: Balkon | F128: Fiyat | G128: Not
B129: 89 | C129: Studio (C) | D129: 36 | E129: 5 | F129: =F118+2500 -> 111500 | J129: x | L129: x | O129: x
B130: 90 | C130: 1+1 | D130: 103 | E130: 40 | F130: 185500 | J130: x | M130: x | N130: x
B131: 91 | C131: Studio (B) | D131: 45 | E131: 8 | F131: 122000 | G131: DEPOSİT | M131: x | N131: x
B132: 92 | C132: Studio (A) | D132: 45 | E132: 8 | F132: 122000 | M132: x | N132: x
B133: 93 | C133: Studio (A) | D133: 45 | E133: 8 | F133: 119500 | M133: x | N133: x
B134: 94 | C134: Studio (B) | D134: 45 | E134: 8 | F134: 117500 | M134: x | N134: x
B135: 95 | C135: 1+1 | D135: 103 | E135: 40 | F135: 185500 | H135: x | J135: x | M135: x | O135: x
B136: 96 | C136: Studio (C) | D136: 36 | E136: 5 | F136: 113500 | J136: x | L136: x | O136: x
B137: 12. Kat | H137: Köşe | I137: Deniz M. | J137: Dağ M. | K137: Havuz/Peysaj M. | L137: Kuzey | M137: Güney | N137: Doğu | O137: Batı
B139: No: | C139: MODEL | D139: Brüt Alan | E139: Balkon | F139: Fiyat | G139: Not
B140: 97 | C140: Studio (C) | D140: 36 | E140: 5 | F140: =F129+2500 -> 114000 | J140: x | L140: x | O140: x
B141: 98 | C141: 1+1 | D141: 103 | E141: 40 | F141: 188000 | J141: x | M141: x | N141: x
B142: 99 | C142: Studio (B) | D142: 45 | E142: 8 | F142: 124500 | M142: x | N142: x
B143: 100 | C143: Studio (A) | D143: 45 | E143: 8 | F143: 124500 | M143: x | N143: x
B144: 101 | C144: Studio (A) | D144: 45 | E144: 8 | F144: 122000 | M144: x | N144: x
B145: 102 | C145: Studio (B) | D145: 45 | E145: 8 | F145: 120000 | M145: x | N145: x
B146: 103 | C146: 1+1 | D146: 103 | E146: 40 | F146: 188000 | H146: x | J146: x | M146: x | O146: x
B147: 104 | C147: Studio (C) | D147: 36 | E147: 5 | F147: 116000 | J147: x | L147: x | O147: x
B148: 13. Kat | H148: Köşe | I148: Deniz M. | J148: Dağ M. | K148: Havuz/Peysaj M. | L148: Kuzey | M148: Güney | N148: Doğu | O148: Batı
B150: No: | C150: MODEL | D150: Brüt Alan | E150: Balkon | F150: Fiyat | G150: Not
B151: 105 | C151: Studio (C) | D151: 36 | E151: 5 | F151: =F140+2500 -> 116500 | J151: x | L151: x | O151: x
B152: 106 | C152: 1+1 | D152: 103 | E152: 40 | F152: 190500 | I152: x | J152: x | M152: x | N152: x
B153: 107 | C153: Studio (B) | D153: 45 | E153: 8 | F153: 127000 | G153: DEPOSİT | I153: x | M153: x | N153: x
B154: 108 | C154: Studio (A) | D154: 45 | E154: 8 | F154: 127000 | I154: x | M154: x | N154: x
B155: 109 | C155: Studio (A) | D155: 45 | E155: 8 | F155: 124500 | I155: x | M155: x | N155: x
B156: 110 | C156: Studio (B) | D156: 45 | E156: 8 | F156: 122500 | I156: x | M156: x | N156: x
B157: 111 | C157: 1+1 | D157: 103 | E157: 40 | F157: 190500 | H157: x | I157: x | J157: x | M157: x | O157: x
B158: 112 | C158: Studio (C) | D158: 36 | E158: 5 | F158: 118500 | J158: x | L158: x | O158: x
B159: 14. Kat | H159: Köşe | I159: Deniz M. | J159: Dağ M. | K159: Havuz/Peysaj M. | L159: Kuzey | M159: Güney | N159: Doğu | O159: Batı
B161: No: | C161: MODEL | D161: Brüt Alan | E161: Balkon | F161: Fiyat | G161: Not
B162: 113 | C162: Studio (C) | D162: 36 | E162: 5 | F162: =F151+2500 -> 119000 | I162: x | J162: x | L162: x | O162: x
B163: 114 | C163: 1+1 | D163: 103 | E163: 40 | F163: 193000 | I163: x | J163: x | M163: x | N163: x
B164: 115 | C164: Studio (B) | D164: 45 | E164: 8 | F164: 129500 | I164: x | M164: x | N164: x
B165: 116 | C165: Studio (A) | D165: 45 | E165: 8 | F165: 129500 | I165: x | M165: x | N165: x
B166: 117 | C166: Studio (A) | D166: 45 | E166: 8 | F166: 127000 | I166: x | M166: x | N166: x
B167: 118 | C167: Studio (B) | D167: 45 | E167: 8 | F167: 125000 | I167: x | M167: x | N167: x
B168: 119 | C168: 1+1 | D168: 103 | E168: 40 | F168: 193000 | H168: x | I168: x | J168: x | M168: x | O168: x
B169: 120 | C169: Studio (C) | D169: 36 | E169: 5 | F169: 121000 | I169: x | J169: x | L169: x | O169: x
B170: 15. Kat | H170: Köşe | I170: Deniz M. | J170: Dağ M. | K170: Havuz/Peysaj M. | L170: Kuzey | M170: Güney | N170: Doğu | O170: Batı
B172: No: | C172: MODEL | D172: Brüt Alan | E172: Balkon | F172: Fiyat | G172: Not
B173: 121 | C173: 1+1 Pent | D173: 189 | E173: 122 | I173: x | J173: x | L173: x | M173: x | N173: x | O173: x
B174: 122 | C174: Studio (A) | D174: 45 | E174: 8 | I174: x | M174: x | N174: x
B175: 123 | C175: Studio (A) | D175: 45 | E175: 8 | I175: x | M175: x | N175: x
B176: 124 | C176: 1+1 Pent | D176: 189 | E176: 122 | H176: x | I176: x | J176: x | L176: x | M176: x | N176: x | O176: x

Sheet (Afalina-4)
L1: Tarih: 09.05.2024
B3: Tip Kat Planı | F3: Penthouse Kat Planı
A5: Z. Kat | H5: Köşe | I5: Deniz M. | J5: Dağ M. | K5: Havuz/Peysaj M. | L5: Kuzey | M5: Güney | N5: Doğu | O5: Batı
A7: No: | B7: MODEL | C7: Brüt Alan | D7: Balkon | E7: Fiyat | F7: Durum | G7: Not
A8: 1 | B8: Studio (C) | C8: 36 | D8: 5 | E8: 84000 | F8: SOLD | J8: x | L8: x | O8: x
A9: 2 | B9: 1+1 | C9: 103 | D9: 40 | E9: 152000 | H9: x | J9: x | M9: x | N9: x
A10: 3 | B10: Studio (B) | C10: 45 | D10: 8 | E10: 90000 | F10: SOLD | M10: x | N10: x
A11: 4 | B11: Studio (A) | C11: 45 | D11: 8 | E11: 90000 | F11: depozit | M11: x | N11: x
A12: 5 | B12: Studio (A) | C12: 45 | D12: 8 | E12: 90000 | F12: DEPOSİT | M12: x | N12: x
A13: 6 | B13: Studio (B) | C13: 45 | D13: 8 | E13: 90000 | F13: SOLD | M13: x | N13: x
A14: 7 | B14: 1+1 | C14: 103 | D14: 40 | E14: 152000 | F14: SOLD | J14: x | M14: x | O14: x
A15: 8 | B15: Studio (C) | C15: 36 | D15: 5 | E15: 84000 | F15: DEPOSİT | J15: x | L15: x | O15: x
A16: 1. Kat | H16: Köşe | I16: Deniz M. | J16: Dağ M. | K16: Havuz/Peysaj M. | L16: Kuzey | M16: Güney | N16: Doğu | O16: Batı
A18: No: | B18: MODEL | C18: Brüt Alan | D18: Balkon | E18: Fiyat | F18: Durum | G18: Not
A19: 9 | B19: Studio (C) | C19: 36 | D19: 5 | E19: =E8+2500 -> 86500 | F19: SOLD | J19: x | L19: x | O19: x
A20: 10 | B20: 1+1 | C20: 103 | D20: 40 | E20: 154500 | F20: RES.24.08.R.ET | H20: x | J20: x | M20: x | N20: x
A21: 11 | B21: Studio (B) | C21: 45 | D21: 8 | E21: 92500 | F21: SOLD | M21: x | N21: x
A22: 12 | B22: Studio (A) | C22: 45 | D22: 8 | E22: 92500 | F22: DEPOSİTE | M22: x | N22: x
A23: 13 | B23: Studio (A) | C23: 45 | D23: 8 | E23: 92500 | F23: SOLD | M23: x | N23: x
A24: 14 | B24: Studio (B) | C24: 45 | D24: 8 | E24: 92500 | F24: DEPOSİTE | M24: x | N24: x
A25: 15 | B25: 1+1 | C25: 103 | D25: 40 | E25: 154500 | J25: x | M25: x | O25: x
A26: 16 | B26: Studio (C) | C26: 36 | D26: 5 | E26: 86500 | F26: SOLD | J26: x | L26: x | O26: x
A27: 2. Kat | H27: Köşe | I27: Deniz M. | J27: Dağ M. | K27: Havuz/Peysaj M. | L27: Kuzey | M27: Güney | N27: Doğu | O27: Batı
A29: No: | B29: MODEL | C29: Brüt Alan | D29: Balkon | E29: Fiyat | F29: Durum | G29: Not
A30: 17 | B30: Studio (C) | C30: 36 | D30: 5 | E30: =E19+2500 -> 89000 | F30: SOLD | J30: x | L30: x | O30: x
A31: 18 | B31: 1+1 | C31: 103 | D31: 40 | E31: 157000 | F31: DEPOSİT | H31: x | J31: x | M31: x | N31: x
A32: 19 | B32: Studio (B) | C32: 45 | D32: 8 | E32: 95000 | F32: deposit | M32: x | N32: x
A33: 20 | B33: Studio (A) | C33: 45 | D33: 8 | E33: 95000 | F33: DEPOSİT | M33: x | N33: x
A34: 21 | B34: Studio (A) | C34: 45 | D34: 8 | E34: 95000 | F34: DEPOSİT | M34: x | N34: x
A35: 22 | B35: Studio (B) | C35: 45 | D35: 8 | E35: 95000 | F35: SOLD | M35: x | N35: x
A36: 23 | B36: 1+1 | C36: 103 | D36: 40 | E36: 157000 | J36: x | M36: x | O36: x
A37: 24 | B37: Studio (C) | C37: 36 | D37: 5 | E37: 89000 | F37: SOLD | J37: x | L37: x | O37: x
A38: 3. Kat | H38: Köşe | I38: Deniz M. | J38: Dağ M. | K38: Havuz/Peysaj M. | L38: Kuzey | M38: Güney | N38: Doğu | O38: Batı
A40: No: | B40: MODEL | C40: Brüt Alan | D40: Balkon | E40: Fiyat | F40: Durum | G40: Not
A41: 25 | B41: Studio (C) | C41: 36 | D41: 5 | E41: =E30+2500 -> 91500 | F41: DEPOSİT | J41: x | L41: x | O41: x
A42: 26 | B42: 1+1 | C42: 103 | D42: 40 | E42: 159500 | H42: x | J42: x | M42: x | N42: x
A43: 27 | B43: Studio (B) | C43: 45 | D43: 8 | E43: 97500 | F43: DEPOSİT | M43: x | N43: x
A44: 28 | B44: Studio (A) | C44: 45 | D44: 8 | E44: 97500 | F44: DEPOİT | M44: x | N44: x
A45: 29 | B45: Studio (A) | C45: 45 | D45: 8 | E45: 97500 | F45: RES.07.10.D.G | M45: x | N45: x
A46: 30 | B46: Studio (B) | C46: 45 | D46: 8 | E46: 97500 | F46: SOLD | M46: x | N46: x
A47: 31 | B47: 1+1 | C47: 103 | D47: 40 | E47: 159500 | J47: x | M47: x | O47: x
A48: 32 | B48: Studio (C) | C48: 36 | D48: 5 | E48: 91500 | F48: DEPOSİT | J48: x | L48: x | O48: x
A49: 4. Kat | H49: Köşe | I49: Deniz M. | J49: Dağ M. | K49: Havuz/Peysaj M. | L49: Kuzey | M49: Güney | N49: Doğu | O49: Batı
A51: No: | B51: MODEL | C51: Brüt Alan | D51: Balkon | E51: Fiyat | F51: Durum | G51: Not
A52: 33 | B52: Studio (C) | C52: 36 | D52: 5 | E52: =E41+2500 -> 94000 | F52: RES.28.10.SH.K | J52: x | L52: x | O52: x
A53: 34 | B53: 1+1 | C53: 103 | D53: 40 | E53: 162000 | F53: RES.21.10.H.A | H53: x | J53: x | M53: x | N53: x
A54: 35 | B54: Studio (B) | C54: 45 | D54: 8 | E54: 100000 | F54: RES.28.10.SH.K | M54: x | N54: x
A55: 36 | B55: Studio (A) | C55: 45 | D55: 8 | E55: 100000 | F55: DEPOSİT | M55: x | N55: x
A56: 37 | B56: Studio (A) | C56: 45 | D56: 8 | E56: 100000 | F56: RES 8.05.B.F | M56: x | N56: x
A57: 38 | B57: Studio (B) | C57: 45 | D57: 8 | E57: 100000 | F57: RES.31.08.A.L | M57: x | N57: x
A58: 39 | B58: 1+1 | C58: 103 | D58: 40 | E58: 162000 | J58: x | M58: x | O58: x
A59: 40 | B59: Studio (C) | C59: 36 | D59: 5 | E59: 94000 | F59: RES.28.10.SH.K | J59: x | L59: x | O59: x
A60: 5. Kat | H60: Köşe | I60: Deniz M. | J60: Dağ M. | K60: Havuz/Peysaj M. | L60: Kuzey | M60: Güney | N60: Doğu | O60: Batı
A62: No: | B62: MODEL | C62: Brüt Alan | D62: Balkon | E62: Fiyat | F62: Durum | G62: Not
A63: 41 | B63: Studio (C) | C63: 36 | D63: 5 | E63: =E52+2500 -> 96500 | F63: RES.28.10.R.E | J63: x | L63: x | O63: x
A64: 42 | B64: 1+1 | C64: 103 | D64: 40 | E64: 164500 | H64: x | J64: x | M64: x | N64: x
A65: 43 | B65: Studio (B) | C65: 45 | D65: 8 | E65: 102500 | M65: x | N65: x
A66: 44 | B66: Studio (A) | C66: 45 | D66: 8 | E66: 102500 | F66: DEPOSİT | M66: x | N66: x
A67: 45 | B67: Studio (A) | C67: 45 | D67: 8 | E67: 102500 | M67: x | N67: x
A68: 46 | B68: Studio (B) | C68: 45 | D68: 8 | E68: 102500 | M68: x | N68: x
A69: 47 | B69: 1+1 | C69: 103 | D69: 40 | E69: 164500 | J69: x | M69: x | O69: x
A70: 48 | B70: Studio (C) | C70: 36 | D70: 5 | E70: 96500 | F70: RES.23.10.A.T | J70: x | L70: x | O70: x
A71: 6. Kat | H71: Köşe | I71: Deniz M. | J71: Dağ M. | K71: Havuz/Peysaj M. | L71: Kuzey | M71: Güney | N71: Doğu | O71: Batı
A73: No: | B73: MODEL | C73: Brüt Alan | D73: Balkon | E73: Fiyat | F73: Durum | G73: Not
A74: 49 | B74: Studio (C) | C74: 36 | D74: 5 | E74: =E63+2500 -> 99000 | F74: RES.25.10.H.A | J74: x | L74: x | O74: x
A75: 50 | B75: 1+1 | C75: 103 | D75: 40 | E75: 167000 | H75: x | J75: x | M75: x | N75: x
A76: 51 | B76: Studio (B) | C76: 45 | D76: 8 | E76: 105000 | F76: RES.06.09.SH.K | M76: x | N76: x
A77: 52 | B77: Studio (A) | C77: 45 | D77: 8 | E77: 105000 | M77: x | N77: x
A78: 53 | B78: Studio (A) | C78: 45 | D78: 8 | E78: 105000 | M78: x | N78: x
A79: 54 | B79: Studio (B) | C79: 45 | D79: 8 | E79: 105000 | M79: x | N79: x
A80: 55 | B80: 1+1 | C80: 103 | D80: 40 | E80: 167000 | J80: x | M80: x | O80: x
A81: 56 | B81: Studio (C) | C81: 36 | D81: 5 | E81: 99000 | F81: RES.25.10.H.A | J81: x | L81: x | O81: x
A82: 7. Kat | H82: Köşe | I82: Deniz M. | J82: Dağ M. | K82: Havuz/Peysaj M. | L82: Kuzey | M82: Güney | N82: Doğu | O82: Batı
A84: No: | B84: MODEL | C84: Brüt Alan | D84: Balkon | E84: Fiyat | F84: Durum | G84: Not
A85: 57 | B85: Studio (C) | C85: 36 | D85: 5 | E85: =E74+2500 -> 101500 | J85: x | L85: x | O85: x
A86: 58 | B86: 1+1 | C86: 103 | D86: 40 | E86: 169500 | H86: x | J86: x | M86: x | N86: x
A87: 59 | B87: Studio (B) | C87: 45 | D87: 8 | E87: 107500 | M87: x | N87: x
A88: 60 | B88: Studio (A) | C88: 45 | D88: 8 | E88: 107500 | M88: x | N88: x
A89: 61 | B89: Studio (A) | C89: 45 | D89: 8 | E89: 107500 | M89: x | N89: x
A90: 62 | B90: Studio (B) | C90: 45 | D90: 8 | E90: 107500 | M90: x | N90: x
A91: 63 | B91: 1+1 | C91: 103 | D91: 40 | E91: 169500 | J91: x | M91: x | O91: x
A92: 64 | B92: Studio (C) | C92: 36 | D92: 5 | E92: 101500 | J92: x | L92: x | O92: x
A93: 8. Kat | H93: Köşe | I93: Deniz M. | J93: Dağ M. | K93: Havuz/Peysaj M. | L93: Kuzey | M93: Güney | N93: Doğu | O93: Batı
A95: No: | B95: MODEL | C95: Brüt Alan | D95: Balkon | E95: Fiyat | F95: Durum | G95: Not
A96: 65 | B96: Studio (C) | C96: 36 | D96: 5 | E96: =E85+2500 -> 104000 | J96: x | L96: x | O96: x
A97: 66 | B97: 1+1 | C97: 103 | D97: 40 | E97: 172000 | H97: x | J97: x | M97: x | N97: x
A98: 67 | B98: Studio (B) | C98: 45 | D98: 8 | E98: 110000 | M98: x | N98: x
A99: 68 | B99: Studio (A) | C99: 45 | D99: 8 | E99: 110000 | M99: x | N99: x
A100: 69 | B100: Studio (A) | C100: 45 | D100: 8 | E100: 110000 | M100: x | N100: x
A101: 70 | B101: Studio (B) | C101: 45 | D101: 8 | E101: 110000 | M101: x | N101: x
A102: 71 | B102: 1+1 | C102: 103 | D102: 40 | E102: 172000 | J102: x | M102: x | O102: x
A103: 72 | B103: Studio (C) | C103: 36 | D103: 5 | E103: 104000 | J103: x | L103: x | O103: x
A104: 9. Kat | H104: Köşe | I104: Deniz M. | J104: Dağ M. | K104: Havuz/Peysaj M. | L104: Kuzey | M104: Güney | N104: Doğu | O104: Batı
A106: No: | B106: MODEL | C106: Brüt Alan | D106: Balkon | E106: Fiyat | F106: Durum | G106: Not
A107: 73 | B107: Studio (C) | C107: 36 | D107: 5 | E107: =E96+2500 -> 106500 | J107: x | L107: x | O107: x
A108: 74 | B108: 1+1 | C108: 103 | D108: 40 | E108: 174500 | H108: x | J108: x | M108: x | N108: x
A109: 75 | B109: Studio (B) | C109: 45 | D109: 8 | E109: 112500 | M109: x | N109: x
A110: 76 | B110: Studio (A) | C110: 45 | D110: 8 | E110: 112500 | M110: x | N110: x
A111: 77 | B111: Studio (A) | C111: 45 | D111: 8 | E111: 112500 | M111: x | N111: x
A112: 78 | B112: Studio (B) | C112: 45 | D112: 8 | E112: 112500 | M112: x | N112: x
A113: 79 | B113: 1+1 | C113: 103 | D113: 40 | E113: 174500 | J113: x | M113: x | O113: x
A114: 80 | B114: Studio (C) | C114: 36 | D114: 5 | E114: 106500 | J114: x | L114: x | O114: x
A115: 10. Kat | H115: Köşe | I115: Deniz M. | J115: Dağ M. | K115: Havuz/Peysaj M. | L115: Kuzey | M115: Güney | N115: Doğu | O115: Batı
A117: No: | B117: MODEL | C117: Brüt Alan | D117: Balkon | E117: Fiyat | F117: Durum | G117: Not
A118: 81 | B118: Studio (C) | C118: 36 | D118: 5 | E118: =E107+2500 -> 109000 | F118: res.29.04.B.F | J118: x | L118: x | O118: x
A119: 82 | B119: 1+1 | C119: 103 | D119: 40 | E119: 177000 | H119: x | J119: x | M119: x | N119: x
A120: 83 | B120: Studio (B) | C120: 45 | D120: 8 | E120: 115000 | M120: x | N120: x
A121: 84 | B121: Studio (A) | C121: 45 | D121: 8 | E121: 115000 | M121: x | N121: x
A122: 85 | B122: Studio (A) | C122: 45 | D122: 8 | E122: 115000 | M122: x | N122: x
A123: 86 | B123: Studio (B) | C123: 45 | D123: 8 | E123: 115000 | M123: x | N123: x
A124: 87 | B124: 1+1 | C124: 103 | D124: 40 | E124: 177000 | J124: x | M124: x | O124: x
A125: 88 | B125: Studio (C) | C125: 36 | D125: 5 | E125: 109000 | J125: x | L125: x | O125: x
A126: 11. Kat | H126: Köşe | I126: Deniz M. | J126: Dağ M. | K126: Havuz/Peysaj M. | L126: Kuzey | M126: Güney | N126: Doğu | O126: Batı
A128: No: | B128: MODEL | C128: Brüt Alan | D128: Balkon | E128: Fiyat | F128: Durum | G128: Not
A129: 89 | B129: Studio (C) | C129: 36 | D129: 5 | E129: =E118+2500 -> 111500 | J129: x | L129: x | O129: x
A130: 90 | B130: 1+1 | C130: 103 | D130: 40 | E130: 179500 | H130: x | J130: x | M130: x | N130: x
A131: 91 | B131: Studio (B) | C131: 45 | D131: 8 | E131: 117500 | M131: x | N131: x
A132: 92 | B132: Studio (A) | C132: 45 | D132: 8 | E132: 117500 | M132: x | N132: x
A133: 93 | B133: Studio (A) | C133: 45 | D133: 8 | E133: 117500 | M133: x | N133: x
A134: 94 | B134: Studio (B) | C134: 45 | D134: 8 | E134: 117500 | M134: x | N134: x
A135: 95 | B135: 1+1 | C135: 103 | D135: 40 | E135: 179500 | J135: x | M135: x | O135: x
A136: 96 | B136: Studio (C) | C136: 36 | D136: 5 | E136: 111500 | J136: x | L136: x | O136: x
A137: 12. Kat | H137: Köşe | I137: Deniz M. | J137: Dağ M. | K137: Havuz/Peysaj M. | L137: Kuzey | M137: Güney | N137: Doğu | O137: Batı
A139: No: | B139: MODEL | C139: Brüt Alan | D139: Balkon | E139: Fiyat | F139: Durum | G139: Not
A140: 97 | B140: Studio (C) | C140: 36 | D140: 5 | E140: =E129+2500 -> 114000 | J140: x | L140: x | O140: x
A141: 98 | B141: 1+1 | C141: 103 | D141: 40 | E141: 182000 | H141: x | J141: x | M141: x | N141: x
A142: 99 | B142: Studio (B) | C142: 45 | D142: 8 | E142: 120000 | M142: x | N142: x
A143: 100 | B143: Studio (A) | C143: 45 | D143: 8 | E143: 120000 | M143: x | N143: x
A144: 101 | B144: Studio (A) | C144: 45 | D144: 8 | E144: 120000 | M144: x | N144: x
A145: 102 | B145: Studio (B) | C145: 45 | D145: 8 | E145: 120000 | M145: x | N145: x
A146: 103 | B146: 1+1 | C146: 103 | D146: 40 | E146: 182000 | J146: x | M146: x | O146: x
A147: 104 | B147: Studio (C) | C147: 36 | D147: 5 | E147: 114000 | J147: x | L147: x | O147: x
A148: 13. Kat | H148: Köşe | I148: Deniz M. | J148: Dağ M. | K148: Havuz/Peysaj M. | L148: Kuzey | M148: Güney | N148: Doğu | O148: Batı
A150: No: | B150: MODEL | C150: Brüt Alan | D150: Balkon | E150: Fiyat | F150: Durum | G150: Not
A151: 105 | B151: Studio (C) | C151: 36 | D151: 5 | E151: =E140+2500 -> 116500 | J151: x | L151: x | O151: x
A152: 106 | B152: 1+1 | C152: 103 | D152: 40 | E152: 184500 | H152: x | I152: x | J152: x | M152: x | N152: x
A153: 107 | B153: Studio (B) | C153: 45 | D153: 8 | E153: 122500 | I153: x | M153: x | N153: x
A154: 108 | B154: Studio (A) | C154: 45 | D154: 8 | E154: 122500 | I154: x | M154: x | N154: x
A155: 109 | B155: Studio (A) | C155: 45 | D155: 8 | E155: 122500 | I155: x | M155: x | N155: x
A156: 110 | B156: Studio (B) | C156: 45 | D156: 8 | E156: 122500 | I156: x | M156: x | N156: x
A157: 111 | B157: 1+1 | C157: 103 | D157: 40 | E157: 184500 | I157: x | J157: x | M157: x | O157: x
A158: 112 | B158: Studio (C) | C158: 36 | D158: 5 | E158: 116500 | J158: x | L158: x | O158: x
A159: 14. Kat | H159: Köşe | I159: Deniz M. | J159: Dağ M. | K159: Havuz/Peysaj M. | L159: Kuzey | M159: Güney | N159: Doğu | O159: Batı
A161: No: | B161: MODEL | C161: Brüt Alan | D161: Balkon | E161: Fiyat | F161: Durum | G161: Not
A162: 113 | B162: Studio (C) | C162: 36 | D162: 5 | E162: =E151+2500 -> 119000 | J162: x | L162: x | O162: x
A163: 114 | B163: 1+1 | C163: 103 | D163: 40 | E163: 187000 | H163: x | I163: x | J163: x | M163: x | N163: x
A164: 115 | B164: Studio (B) | C164: 45 | D164: 8 | E164: 125000 | I164: x | M164: x | N164: x
A165: 116 | B165: Studio (A) | C165: 45 | D165: 8 | E165: 125000 | I165: x | M165: x | N165: x
A166: 117 | B166: Studio (A) | C166: 45 | D166: 8 | E166: 125000 | I166: x | M166: x | N166: x
A167: 118 | B167: Studio (B) | C167: 45 | D167: 8 | E167: 125000 | I167: x | M167: x | N167: x
A168: 119 | B168: 1+1 | C168: 103 | D168: 40 | E168: 187000 | I168: x | J168: x | M168: x | O168: x
A169: 120 | B169: Studio (C) | C169: 36 | D169: 5 | E169: 119000 | J169: x | L169: x | O169: x
A170: 15. Kat | H170: Köşe | I170: Deniz M. | J170: Dağ M. | K170: Havuz/Peysaj M. | L170: Kuzey | M170: Güney | N170: Doğu | O170: Batı
A172: No: | B172: MODEL | C172: Brüt Alan | D172: Balkon | E172: Fiyat | F172: Durum | G172: Not
A173: 121 | B173: 1+1 Pent | C173: 189 | D173: 122 | H173: x | I173: x | J173: x | L173: x | M173: x | N173: x | O173: x
A174: 122 | B174: Studio (A) | C174: 45 | D174: 8 | I174: x | M174: x | N174: x
A175: 123 | B175: Studio (A) | C175: 45 | D175: 8 | I175: x | M175: x | N175: x
A176: 124 | B176: 1+1 Pent | C176: 189 | D176: 122 | I176: x | J176: x | L176: x | M176: x | N176: x | O176: x
